Cogmind - Beta 13 @@@ ROGUE MODE // 2024.05.03 @ 19:47:40 Player: Exceptionally Mediocre Result: Destroyed by P-70 Sage with High-powered Shock Rifle Performance ------------- Evolutions (6) 3000 Regions Visited (15) 3000 Robots Destroyed (86) 430 Value Destroyed (2745) 2745 Prototype IDs (37) 740 Alien Tech Used (0) 0 Bonus (842) 842 TOTAL SCORE: 10757 Bonus ------- High Alert Combat Kills 111 Follower Combat Kills 131 Aligned with FarCom 300 Met Data Miner 300 Cogmind --------- Core Integrity 0/1150 Matter 300/300 Energy 70/100 System Corruption 4% Temperature Cool (0) Movement Core (400) Ox7 Location -4/Factory Parts ------- > --- POWER (1) -------- (None) > --- PROPULSION (8) --- (None) > --- UTILITY (8) ------ Large Storage Unit Modified TNC Hacking Suite > --- WEAPON (2) ------- Thunder Hammer > --- INVENTORY (15) --- High-capacity Storage Unit Improved Remote Shield System Shield Advanced System Shield Heavy Laser Autogun Peak State ------------ > --- POWER ------------ Light Fission Core > --- PROPULSION ------- VTOL Module VTOL Module VTOL Module Cesium-ion Thruster Cesium-ion Thruster Field Propulsion Drive > --- UTILITY ---------- Power Amplifier Large Storage Unit Advanced Weight Redist. System Modified TNC Hacking Suite Hacking Suite System Shield System Shield > --- WEAPON ----------- Power Maul Ionic Axe > --- INVENTORY -------- Fission Core Micro Fission Core High-capacity Storage Unit Energy Well Force Booster Force Booster Transmission Jammer Improved Reaction Control System System Shield Advanced System Shield Improved System Restoration Module Thief Drone Bay Thunder Hammer Chainsword Makeshift Axe [Rating: 68] Favorites ----------- Power Light Ion Engine Engine Light Ion Engine Power Core Nuclear Core Reactor Light Antimatter Reactor Propulsion Light Treads Treads Light Treads Leg Carbon-fiber Leg Wheel Compact Wheel Hover Unit Cooled Gravmag System Flight Unit Improved Flight Unit Utility Huge Storage Unit Device Advanced Weight Redist. System Storage Huge Storage Unit Processor Modified TNC Hackware Hacking Suite Protection Utility Shielding Weapon Gauss Rifle Energy Gun Small Laser Ballistic Gun Gauss Rifle Impact Weapon Power Maul Slashing Weapon Chainsword Build | -11 -10 -10 -10 -9 -8 -7 -7 -7 -6 -6 -6 -6 -5 -5 -4 ------- Run | Yrd Mat Min Exi Min Mat Fac Low Low Fac Low Low Dat Pro Fac Fac Slots Evolved 12 | . . . . . 4 2 . . 2 . . . . 2 2 Power . | . . . . . . . . . . . . . . . . Propulsion 6 | . . . . . 2 1 . . . . . . . 1 2 Utility 6 | . . . . . 2 1 . . 2 . . . . 1 . Weapon . | . . . . . . . . . . . . . . . . Parts Attached 120 | 7 2 1 . 5 20 21 3 . 11 9 2 . 1 27 11 Power 11 | 1 . . . . 2 1 1 . . 1 1 . . 2 2 Engine 5 | 1 . . . . 2 1 . . . . . . . 1 . Core 5 | . . . . . . . 1 . . 1 1 . . 1 1 Reactor 1 | . . . . . . . . . . . . . . . 1 Propulsion 47 | 2 . . . . 8 7 . . 4 6 1 . 1 14 4 Treads 11 | 2 . . . . 7 2 . . . . . . . . . Leg 3 | . . . . . . . . . . . . . . . 3 Wheel 3 | . . . . . . . . . . . . . . 3 . Hover 1 | . . . . . . . . . . . . . . 1 . Flight 29 | . . . . . 1 5 . . 4 6 1 . 1 10 1 Utility 36 | 2 2 . . 3 5 6 2 . 6 . . . . 7 3 Device 11 | 1 . . . 1 1 1 1 . . . . . . 5 1 Storage 8 | 1 2 . . . . 1 . . 1 . . . . 1 2 Processor 1 | . . . . . . . . . 1 . . . . . . Hackware 4 | . . . . . . . . . 3 . . . . 1 . Protection 12 | . . . . 2 4 4 1 . 1 . . . . . . Artifact . | . . . . . . . . . . . . . . . . Weapon 26 | 2 . 1 . 2 5 7 . . 1 2 . . . 4 2 Energy Gun 1 | 1 . . . . . . . . . . . . . . . Energy Cannon . | . . . . . . . . . . . . . . . . Ballistic Gun 14 | 1 . . . 2 5 6 . . . . . . . . . Ballistic Cannon . | . . . . . . . . . . . . . . . . Launcher . | . . . . . . . . . . . . . . . . Special Weapon . | . . . . . . . . . . . . . . . . Impact Weapon 3 | . . . . . . . . . . 1 . . . . 2 Slashing Weapon 8 | . . 1 . . . 1 . . 1 1 . . . 4 . Piercing Weapon . | . . . . . . . . . . . . . . . . Special Melee Weapon . | . . . . . . . . . . . . . . . . Unidentified Prototypes 5 | . . . . 1 3 . . . . . . . . 1 . Parts Lost 52 | . . . . . 2 11 1 . . 5 1 . 1 12 19 Power 5 | . . . . . . . 1 . . . . . . 2 2 Propulsion 26 | . . . . . . 6 . . . 4 1 . 1 5 9 Utility 13 | . . . . . 2 3 . . . . . . . 3 5 Weapon 8 | . . . . . . 2 . . . 1 . . . 2 3 Highest Loss Streak 18 | . . . . . 1 4 1 . . 3 1 . 1 4 18 To Critical Strikes . | . . . . . . . . . . . . . . . . Average Slot Usage (%) 93 | . 100 100 100 100 99 83 91 92 90 99 100 100 100 89 54 Engine 6 | . 14 14 14 14 9 7 . . . . . . . 1 . Core 1 | . . . . . . . 6 7 6 6 6 6 6 3 . Treads 16 | . 28 28 28 28 36 15 . . . . . . . . . Flight 12 | . . . . . . 8 38 38 31 33 33 33 33 20 2 Device 8 | . 14 14 14 8 1 7 6 7 6 6 6 6 6 9 2 Storage 9 | . 14 14 14 14 9 7 7 7 6 6 6 6 6 5 4 Processor 1 | . . . . . . . . . 4 6 6 6 6 5 5 Hackware 5 | . . . . . . . . . 20 20 20 20 20 23 16 Protection 10 | . . . . 5 25 21 22 23 8 6 6 6 6 1 . Energy Gun 2 | . 14 13 . . . . . . . . . . . . . Ballistic Gun 9 | . 14 14 14 19 18 14 . . . . . . . . . Slashing Weapon 4 | . . . 14 8 . . 7 7 5 6 6 6 6 8 6 Naked Turns . | . . . . . . . . . . . . . . . . Heaviest Build 123 | 12 87 88 88 96 123 108 77 74 54 34 34 34 34 59 74 Greatest Support 100 | 40 40 40 40 40 80 100 35 35 37 37 36 35 35 57 57 Greatest Overweight (x) 35 | 3 2 2 2 2 1 35 2 2 1 1 1 . . 4 7 Average Overweight (x) . | . 1 2 2 2 1 2 1 2 . . . . . . . Largest Inventory Capacity 25 | 8 25 25 25 25 25 25 20 20 20 15 15 15 15 20 20 Average Capacity 21 | 7 19 25 25 25 25 24 20 20 16 15 15 15 15 17 16 Most Carried 25 | 4 6 22 23 25 25 25 20 20 20 15 15 15 15 20 20 Average Carried 19 | 2 4 15 22 24 24 23 18 20 16 14 14 15 14 16 14 Final Capacity 25 | 8 25 25 25 25 25 20 20 20 15 15 15 15 15 20 15 Final Carried 25 | 4 6 22 23 25 25 20 20 20 15 14 15 15 15 18 6 Class Distribution -------------------- 59% | Mutant 17% | Hacker-Sprinter 10% | Hacker-Mutant 9% | Scavenger-Mutant 3% | Assassin Dominant Class ---------------- Mutant | -10/Materials Mutant | -10/Mines Mutant | -10/Exiles Mutant | -9/Mines Mutant | -8/Materials Mutant | -7/Factory Mutant | -7/Lower Caves Mutant | -7/Lower Caves Hacker-Mutant | -6/Factory Hacker-Sprinter | -6/Lower Caves Hacker-Sprinter | -6/Lower Caves Hacker-Sprinter | -6/Data Miner Hacker-Sprinter | -5/Proximity Caves Hacker-Mutant | -5/Factory Hacker-Mutant | -4/Factory Resources | -11 -10 -10 -10 -9 -8 -7 -7 -7 -6 -6 -6 -6 -5 -5 -4 ----------- Run | Yrd Mat Min Exi Min Mat Fac Low Low Fac Low Low Dat Pro Fac Fac Matter Collected 2705 | 252 54 122 . 67 894 673 147 . 58 137 20 . 10 221 50 Remotely . | . . . . . . . . . . . . . . . . Salvage Created 3790 | 36 16 . . . 1325 825 49 . 75 362 117 . . 744 241 Parts 187 | 7 1 . . . 71 38 3 . 9 13 5 . . 28 12 Haulers Intercepted 6 | . . . . . 3 . . . . . . . . 3 . Recyclers Shooed 3 | 1 1 . . . 1 . . . . . . . . . . Parts Field Recycled . | . . . . . . . . . . . . . . . . Retrieved Matter . | . . . . . . . . . . . . . . . . Parts Self-Destructed 13 | . . . . . . . 3 1 . 8 1 . . . . Prevented 1 | . . . . . . . . 1 . . . . . . . Kills | -11 -10 -10 -10 -9 -8 -7 -7 -7 -6 -6 -6 -6 -5 -5 -4 ------- Run | Yrd Mat Min Exi Min Mat Fac Low Low Fac Low Low Dat Pro Fac Fac Combat Hostiles Destroyed 56 | . . . . . 24 13 1 . 1 5 . . . 3 9 Melee 17 | . . . . . . . 1 . 1 5 . . . 3 7 Guns 37 | . . . . . 24 13 . . . . . . . . . Classes Destroyed 15 | 1 1 . . . 8 2 . . . 1 1 . . 1 . Worker 5 | . 1 . . . 2 . . . . . . . . 1 1 Builder 8 | . . . . . 3 2 . . . . . . . 3 . Tunneler 3 | 2 . . . . . . . . 1 . . . . . . Hauler 6 | . . . . . 3 . . . . . . . . 3 . Recycler 4 | . . . . . 1 2 . . . . . . . 1 . Minesweeper 1 | . . . . . . . . . . 1 . . . . . Operator 2 | . . . . . 1 . . . 1 . . . . . . Watcher 1 | . . . . . . . . . . . . . . 1 . Swarmer 17 | . . . . . 5 . . . . 4 . . . . 8 Grunt 25 | . . . . . 15 8 . . . 1 . . . 1 . Brawler 1 | . . . . . 1 . . . . . . . . . . Sentry 4 | . . . . . 3 1 . . . . . . . . . Hunter 3 | . . . . . . 2 1 . . . . . . . . Programmer 6 | . . . . . . 2 . . 1 . . . . 2 1 Decomposer 1 | . . . . . . . . . . 1 . . . . . Samaritan 2 | . . . . . . . . . . . 2 . . . . Best Kill Streak 9 | 1 1 . . . 9 4 1 . 1 2 . . . 3 8 Combat Bots Only 9 | . . . . . 9 3 1 . 1 2 . . . 2 7 Max Kills in Single Turn 2 | 1 1 . . . 2 1 1 . 1 1 1 . . 1 1 Gunslinging 1 | . . . . . 1 . . . . . . . . . . Exploded . | . . . . . . . . . . . . . . . . Melee 1 | . . . . . . . 1 . 1 1 . . . 1 1 Uniques/NPCs Destroyed . | . . . . . . . . . . . . . . . . Combat | -11 -10 -10 -10 -9 -8 -7 -7 -7 -6 -6 -6 -6 -5 -5 -4 -------- Run | Yrd Mat Min Exi Min Mat Fac Low Low Fac Low Low Dat Pro Fac Fac Hostile Shots Fired 694 | . . . . . 156 188 16 . 4 46 7 . 13 51 213 Missed 203 | . . . . . 45 56 3 . 1 20 3 . 8 13 54 Damage Taken 6935 | . . . . . 1114 1453 156 . 140 418 73 . 96 883 2602 Core 1719 | . . . . . 74 54 20 . 14 114 . . 19 258 1166 Absorbed by Shields 400 | . . . . . 221 140 . . . . . . . . 39 Redirected to Shielding 117 | . . . . . 61 34 5 . . . . . 5 12 . Ignored by Resistances 248 | . . . . . 166 21 61 . . . . . . . . Regen/Repaired (Parts) 440 | . . . . . . 301 . . 96 . . . . 43 . Core Remaining (%) 88 | 100 . . . 100 86 . . 89 . . . . 82 74 . Volleys Fired 181 | 8 2 5 . . 91 75 . . . . . . . . . Largest 2 | 2 2 2 . . 2 2 . . . . . . . . . Hottest 60 | 60 60 60 . . 56 56 . . . . . . . . . Shots Fired 359 | 16 4 10 . . 182 147 . . . . . . . . . Gun 359 | 16 4 10 . . 182 147 . . . . . . . . . Cannon . | . . . . . . . . . . . . . . . . Launcher . | . . . . . . . . . . . . . . . . Special . | . . . . . . . . . . . . . . . . Kinetic 344 | 8 2 5 . . 182 147 . . . . . . . . . Thermal 15 | 8 2 5 . . . . . . . . . . . . . Explosive . | . . . . . . . . . . . . . . . . Electromagnetic . | . . . . . . . . . . . . . . . . Robot Hit Streak 12 | 4 1 4 . . 11 12 . . . . . . . . . Robot Miss Streak 7 | 2 5 6 . . 3 7 . . . . . . . . . Penetration Max 1 | . . . . . 1 1 . . . . . . . . . Secondary Targets 6 | . . . . . 5 1 . . . . . . . . . Max Gunslinging Chain 1 | . . . . . 1 1 . . . . . . . . . Shots Hit Robots 307 | 10 1 4 . . 120 97 3 . 3 15 4 . . 33 17 Core Hits 121 | 3 1 1 . . 55 33 1 . 3 8 1 . . 11 4 Critical Kills 6 | . 1 . . . 1 2 . . . . . . . . 2 Critical Parts Destroyed 8 | . . . . . . 3 . . . . . . . . 5 Critical Strikes 19 | . 1 . . . 2 5 . . . 3 . . . 1 7 Destroy 8 | . 1 . . . 2 5 . . . . . . . . . Smash 7 | . . . . . . . . . . . . . . . 7 Sever 4 | . . . . . . . . . . 3 . . . 1 . Melee Attacks 156 | . . 1 . . . 1 5 . 17 29 18 . . 57 28 Impact 27 | . . . . . . . . . . 4 4 . . 2 17 Slashing 129 | . . 1 . . . 1 5 . 17 25 14 . . 55 11 Piercing . | . . . . . . . . . . . . . . . . Sneak Attacks 17 | . . . . . . . . . 2 2 2 . . 10 1 Combat Hostiles . | . . . . . . . . . . . . . . . . Follow-up Attacks 7 | . . . . . . . . . . 1 . . . 6 . Damage Inflicted 9696 | 112 15 48 . . 2875 2201 167 . 260 806 288 . . 2059 865 Guns 4762 | 112 15 48 . . 2444 2143 . . . . . . . . . Cannons . | . . . . . . . . . . . . . . . . Explosions 431 | . . . . . 431 . . . . . . . . . . Melee 4503 | . . . . . . 58 167 . 260 806 288 . . 2059 865 Ramming . | . . . . . . . . . . . . . . . . Kinetic 4685 | 58 15 25 . . 2444 2143 . . . . . . . . . Thermal 508 | 54 . 23 . . 431 . . . . . . . . . . Explosive . | . . . . . . . . . . . . . . . . Electromagnetic . | . . . . . . . . . . . . . . . . Impact 899 | . . . . . . . . . . 114 . . . 122 663 Slashing 3604 | . . . . . . 58 167 . 260 692 288 . . 1937 202 Piercing . | . . . . . . . . . . . . . . . . Highest Corruption 4 | . . . . . . 4 4 4 . . . . . 1 4 Average Corruption 3 | . . . . . . 3 4 4 . . . . . 1 2 Corruption Purged 1 | . . . . . . . . . . . . . . 1 . Corruption Blocked . | . . . . . . . . . . . . . . . . Effects 48 | . . . . . . 27 17 1 . . . . . 3 . Message Errors 13 | . . . . . . 8 4 . . . . . . 1 . Matter Fused 8 | . . . . . . 3 5 . . . . . . . . Heat Flow Errors 6 | . . . . . . 2 4 . . . . . . . . Energy Discharges 7 | . . . . . . 5 1 1 . . . . . . . Parts Rejected 2 | . . . . . . 2 . . . . . . . . . Parts Fused 2 | . . . . . . 2 . . . . . . . . . Data Loss (minor) 4 | . . . . . . 1 1 . . . . . . 2 . Data Loss (major) 1 | . . . . . . . 1 . . . . . . . . Misfires 2 | . . . . . . 2 . . . . . . . . . Alerts 2 | . . . . . . 1 1 . . . . . . . . Weapon Failures 1 | . . . . . . 1 . . . . . . . . . Overload Shots . | . . . . . . . . . . . . . . . . Overflow Damage 1219 | . . . . . 131 23 9 . . 184 201 . . 310 361 Projectiles . | . . . . . . . . . . . . . . . . Explosions 131 | . . . . . 131 . . . . . . . . . . Melee 1088 | . . . . . . 23 9 . . 184 201 . . 310 361 Knockbacks . | . . . . . . . . . . . . . . . . Impact . | . . . . . . . . . . . . . . . . Kinetic . | . . . . . . . . . . . . . . . . Secondary . | . . . . . . . . . . . . . . . . Self-Inflicted Damage . | . . . . . . . . . . . . . . . . Shots . | . . . . . . . . . . . . . . . . Rammed . | . . . . . . . . . . . . . . . . Targets Rammed . | . . . . . . . . . . . . . . . . Kicked . | . . . . . . . . . . . . . . . . Crushed . | . . . . . . . . . . . . . . . . Highest Temperature 256 | . . . . . 84 136 256 . . 15 . . . 95 . Average Temperature 30 | . . . . . 22 29 90 . . 7 . . . 23 . Received Heat Transfer 1162 | . . . . . 400 573 . . . 63 . . . 126 . Siege Activations . | . . . . . . . . . . . . . . . . Robots Corrupted . | . . . . . . . . . . . . . . . . Combat Hostiles . | . . . . . . . . . . . . . . . . Parts Fried 2 | . . . . . . . . . . . . . . 1 1 Impact Corruptions 13 | . . . . . . . . . . 2 . . . 1 10 Robots Melted . | . . . . . . . . . . . . . . . . Combat Hostiles . | . . . . . . . . . . . . . . . . Parts Melted . | . . . . . . . . . . . . . . . . Heat Transferred 425 | 125 . 50 . . 250 . . . . . . . . . . Parts Sabotaged . | . . . . . . . . . . . . . . . . Parts Stolen . | . . . . . . . . . . . . . . . . Parts Stripped . | . . . . . . . . . . . . . . . . Power Chain Reactions . | . . . . . . . . . . . . . . . . Alert | -11 -10 -10 -10 -9 -8 -7 -7 -7 -6 -6 -6 -6 -5 -5 -4 ------- Run | Yrd Mat Min Exi Min Mat Fac Low Low Fac Low Low Dat Pro Fac Fac Peak Influence 617 | 10 11 4 . . 617 355 . . 171 . . . . 129 150 Initial 280 | . 6 4 . . . 280 . . . . . . . . . Average 88 | 3 8 1 . . 153 180 . . 88 . . . . 56 35 Maximum Alert Level 2 | . . . . . 2 1 . . . . . . . . . Low Security (%) 85 | 100 100 100 . 100 74 60 . . 100 . . . . 100 100 Level 1 11 | . . . . . 8 39 . . . . . . . . . Level 2 3 | . . . . . 17 . . . . . . . . . . Level 3 . | . . . . . . . . . . . . . . . . Level 4 . | . . . . . . . . . . . . . . . . Level 5 . | . . . . . . . . . . . . . . . . High Security . | . . . . . . . . . . . . . . . . Max Security . | . . . . . . . . . . . . . . . . Squads Dispatched 21 | . . . . 1 5 6 . . 4 . . . . 3 2 Investigation 6 | . . . . 1 1 1 . . 1 . . . . 2 . Extermination 5 | . . . . . . 2 . . 1 . . . . 1 1 Reinforcement 7 | . . . . . 3 2 . . 1 . . . . . 1 Assault 2 | . . . . . 1 . . . 1 . . . . . . Garrison 1 | . . . . . . 1 . . . . . . . . . Intercept . | . . . . . . . . . . . . . . . . Searches Triggered . | . . . . . . . . . . . . . . . . Construction Impeded 2 | . . . . . 2 . . . . . . . . . . Haulers Reinforced 1 | . . . . . . 1 . . . . . . . . . Active Scanning Responses . | . . . . . . . . . . . . . . . . Cargo Convoy Interrupts . | . . . . . . . . . . . . . . . . Stealth | -11 -10 -10 -10 -9 -8 -7 -7 -7 -6 -6 -6 -6 -5 -5 -4 --------- Run | Yrd Mat Min Exi Min Mat Fac Low Low Fac Low Low Dat Pro Fac Fac Distress Signals 2 | . . . . . 1 . . . . . . . . . 1 Communications Jammed . | . . . . . . . . . . . . . . . . Distress Signals . | . . . . . . . . . . . . . . . . Times Spotted 124 | . . . . . 53 16 1 . 3 16 3 . 5 13 14 Peak Tracking Total 12 | . . . . . 12 3 1 . 1 5 1 . 4 3 9 Tactical Retreats 13 | . . . . . 3 . . . . 5 2 . 1 2 . Traps | -11 -10 -10 -10 -9 -8 -7 -7 -7 -6 -6 -6 -6 -5 -5 -4 ------- Run | Yrd Mat Min Exi Min Mat Fac Low Low Fac Low Low Dat Pro Fac Fac Traps Triggered 4 | . . . . . 1 . . . . . . . . 2 1 Indirectly . | . . . . . . . . . . . . . . . . Trap Hack Attempts . | . . . . . . . . . . . . . . . . Triggered . | . . . . . . . . . . . . . . . . Disarmed . | . . . . . . . . . . . . . . . . Reprogrammed . | . . . . . . . . . . . . . . . . Reused . | . . . . . . . . . . . . . . . . Traps Extracted . | . . . . . . . . . . . . . . . . Installed . | . . . . . . . . . . . . . . . . Triggered 4 | . . . . . . . . 2 . 2 . . . . . Machines | -11 -10 -10 -10 -9 -8 -7 -7 -7 -6 -6 -6 -6 -5 -5 -4 ---------- Run | Yrd Mat Min Exi Min Mat Fac Low Low Fac Low Low Dat Pro Fac Fac Machines Disabled 9 | . . . . . 6 1 . . 1 . . . . . 1 Max in Single Turn 5 | . . . . . 5 1 . . 1 . . . . . . Garrison Access 2 | . . . . . . 1 . . 1 . . . . . . Machines Repaired . | . . . . . . . . . . . . . . . . Machines Dismantled . | . . . . . . . . . . . . . . . . Machines Sabotaged . | . . . . . . . . . . . . . . . . Overloaded Fab Kills . | . . . . . . . . . . . . . . . . Hacking | -11 -10 -10 -10 -9 -8 -7 -7 -7 -6 -6 -6 -6 -5 -5 -4 --------- Run | Yrd Mat Min Exi Min Mat Fac Low Low Fac Low Low Dat Pro Fac Fac Machines Accessed 35 | . . . 1 3 3 3 . . 7 . 4 4 . 8 2 Terminals 12 | . . . . 1 3 . . . 2 . 1 . . 5 . Fabricators 2 | . . . . . . . . . . . . . . 1 1 Repair Stations 3 | . . . . . . 1 . . 1 . . . . 1 . Recycling Units 4 | . . . . . . . . . 2 . . . . 1 1 Scanalyzers 2 | . . . . . . 1 . . 1 . . . . . . Garrison Access 2 | . . . . . . 1 . . 1 . . . . . . Total Hacks 107 | . . . 1 3 6 10 . . 20 . 9 30 . 26 2 Successful 85 | . . . 1 2 3 8 . . 12 . 9 30 . 18 2 Failed 22 | . . . . 1 3 2 . . 8 . . . . 8 . Catastrophic 3 | . . . . 1 . . . . 1 . . . . 1 . Database Lockouts . | . . . . . . . . . . . . . . . . Manual 24 | . . . 1 1 4 . . . 7 . . . . 11 . Terminals 33 | . . . . 1 6 . . . 8 . 1 . . 17 . Fabricators 3 | . . . . . . . . . . . . . . 2 1 Repair Stations 15 | . . . . . . 5 . . 6 . . . . 4 . Recycling Units 7 | . . . . . . . . . 3 . . . . 3 1 Scanalyzers 6 | . . . . . . 4 . . 2 . . . . . . Garrison Access 2 | . . . . . . 1 . . 1 . . . . . . Terminal Hacks 50 | . . . 1 2 1 . . . 2 . 9 30 . 5 . Record 18 | . . . . . . . . . . . 7 11 . . . Part Schematic 13 | . . . . . . . . . . . . 11 . 2 . Robot Schematic 5 | . . . . . . . . . . . . 5 . . . Robot Analysis 3 | . . . . . 1 . . . 1 . . . . 1 . Prototype ID Bank 3 | . . . . . . . . . . . . 3 . . . Open Door 4 | . . . . 2 . . . . . . 2 . . . . Level Access Points 1 | . . . . . . . . . . . . . . 1 . Branch Access Points 2 | . . . . . . . . . 1 . . . . 1 . Derelict Proto ID Bank 1 | . . . 1 . . . . . . . . . . . . Fabricator Hacks 3 | . . . . . . . . . . . . . . 2 1 Load Schematic 1 | . . . . . . . . . . . . . . 1 . Build 2 | . . . . . . . . . . . . . . 1 1 Repair Station Hacks 14 | . . . . . . 4 . . 6 . . . . 4 . Scan Component 7 | . . . . . . 2 . . 3 . . . . 2 . Repair 7 | . . . . . . 2 . . 3 . . . . 2 . Recycling Unit Hacks 4 | . . . . . . . . . 2 . . . . 1 1 Retrieve Components 4 | . . . . . . . . . 2 . . . . 1 1 Scanalyzer 3 | . . . . . . 3 . . . . . . . . . Insert Component 2 | . . . . . . 2 . . . . . . . . . Analyze 1 | . . . . . . 1 . . . . . . . . . Garrison Access Hacks 1 | . . . . . . 1 . . . . . . . . . Seal Access 1 | . . . . . . 1 . . . . . . . . . Unauthorized Hacks 10 | . . . . . 2 . . . 2 . . . . 6 . Terminals 10 | . . . . . 2 . . . 2 . . . . 6 . Assimilate 1 | . . . . . . . . . . . . . . 1 . Botnet 9 | . . . . . 2 . . . 2 . . . . 5 . Fabricators . | . . . . . . . . . . . . . . . . Repair Stations . | . . . . . . . . . . . . . . . . Recycling Units . | . . . . . . . . . . . . . . . . Scanalyzers . | . . . . . . . . . . . . . . . . Garrison Access . | . . . . . . . . . . . . . . . . Data Cores Recovered . | . . . . . . . . . . . . . . . . Used . | . . . . . . . . . . . . . . . . Hacking Detections 15 | . . . . . 2 2 . . 5 . . . . 6 . Full Trace Events 4 | . . . . . . 1 . . 1 . . . . 2 . Feedback Events . | . . . . . . . . . . . . . . . . Feedback Blocked . | . . . . . . . . . . . . . . . . Robot Schematics Acquired 5 | . . . . . . . . . . . . 5 . . . Robots Built . | . . . . . . . . . . . . . . . . Authchips . | . . . . . . . . . . . . . . . . Time . | . . . . . . . . . . . . . . . . Total Robot Build Rating . | . . . . . . . . . . . . . . . . Part Schematics Acquired 14 | . . . . . . 1 . . . . . 11 . 2 . Parts Built 3 | . . . . . . . . . . . . . . 1 2 Authchips . | . . . . . . . . . . . . . . . . Time 148 | . . . . . . . . . . . . . . 84 64 Total Part Build Rating 22 | . . . . . . . . . . . . . . 6 16 Parts Repaired 7 | . . . . . . 2 . . 3 . . . . 2 . Time 302 | . . . . . . 88 . . 144 . . . . 70 . Parts Recycled . | . . . . . . . . . . . . . . . . Recycled Matter . | . . . . . . . . . . . . . . . . Retrieved Matter . | . . . . . . . . . . . . . . . . Retrieved Components 5 | . . . . . . . . . 3 . . . . . 2 Parts Scanalyzed 1 | . . . . . . 1 . . . . . . . . . Part Schematics Acquired 1 | . . . . . . 1 . . . . . . . . . Parts Damaged . | . . . . . . . . . . . . . . . . Bothacking | -11 -10 -10 -10 -9 -8 -7 -7 -7 -6 -6 -6 -6 -5 -5 -4 ------------ Run | Yrd Mat Min Exi Min Mat Fac Low Low Fac Low Low Dat Pro Fac Fac Used RIF Installer . | . . . . . . . . . . . . . . . . Robots Hacked . | . . . . . . . . . . . . . . . . Non-combat . | . . . . . . . . . . . . . . . . Combat . | . . . . . . . . . . . . . . . . Robot Hacks Applied . | . . . . . . . . . . . . . . . . Relay Couplers Released 3 | . . . . . . . . . 3 . . . . . . Machine Destruction 3 | . . . . . . . . . 3 . . . . . . Fabnet Peak Effective % . | . . . . . . . . . . . . . . . . Robots Rewired . | . . . . . . . . . . . . . . . . Allies Hacked . | . . . . . . . . . . . . . . . . Hacks Repelled . | . . . . . . . . . . . . . . . . Allies | -11 -10 -10 -10 -9 -8 -7 -7 -7 -6 -6 -6 -6 -5 -5 -4 -------- Run | Yrd Mat Min Exi Min Mat Fac Low Low Fac Low Low Dat Pro Fac Fac Total Allies 9 | . . 1 . 2 . . . . . . 2 . . 1 3 Largest Group 3 | . . 1 . 2 2 . . . . . 2 . . 1 3 Highest-Rated Group 138 | . . 31 . 43 43 . . . . . 51 . . 10 138 Highest-Rated Ally 46 | . . 31 . 31 31 . . . . . 31 . . 10 46 Total Orders . | . . . . . . . . . . . . . . . . Ally Attacks 52 | . . . . . 20 . . . . . 5 . . 24 3 Total Damage 602 | . . . . . 211 . . . . . 110 . . 94 187 Kills 8 | . . . . . 4 . . . . . 1 . . . 3 Allies Corrupted . | . . . . . . . . . . . . . . . . Allies Melted . | . . . . . . . . . . . . . . . . Intel | -11 -10 -10 -10 -9 -8 -7 -7 -7 -6 -6 -6 -6 -5 -5 -4 ------- Run | Yrd Mat Min Exi Min Mat Fac Low Low Fac Low Low Dat Pro Fac Fac Robot Analysis Total 3 | . . . . . 1 . . . 1 . . . . 1 . Derelict Logs Recovered 6 | . . . . . . . 1 . . 2 2 . 1 . . Drone Launches 7 | . . . . . . . . . . . . . . 7 . Drone Recoveries 6 | . . . . . . . . . . . . . . 6 . Exploration | -11 -10 -10 -10 -9 -8 -7 -7 -7 -6 -6 -6 -6 -5 -5 -4 ------------- Run | Yrd Mat Min Exi Min Mat Fac Low Low Fac Low Low Dat Pro Fac Fac Turns Passed 10072 | 115 227 1354 760 740 1341 1801 804 42 485 247 601 24 438 824 269 Spaces Moved 6913 | 50 91 413 238 224 432 471 468 25 569 518 1728 92 626 871 97 Core 19 | 8 . . . . . 2 . . . . . . . 2 7 Treads 1761 | 42 91 413 238 224 432 321 . . . . . . . . . Legs 1 | . . . . . . . . . . . . . . . 1 Wheels 231 | . . . . . . . . . . . . . . 154 77 Hover . | . . . . . . . . . . . . . . . . Flight 4901 | . . . . . . 148 468 25 569 518 1728 92 626 715 12 Fastest Speed 21 | 50 160 320 320 320 240 175 101 175 27 27 26 26 25 21 35 Average Speed 116 | 153 240 320 320 320 240 309 165 175 45 27 27 26 25 52 118 Slowest Speed 1800 | 200 320 320 320 320 240 1800 175 175 104 106 106 26 26 250 435 Overloaded Moves . | . . . . . . . . . . . . . . . . Propulsion Burnouts . | . . . . . . . . . . . . . . . . Robots Hopped . | . . . . . . . . . . . . . . . . Cave-ins Triggered . | . . . . . . . . . . . . . . . . Exploration Rate (%) 43 | 5 21 84 62 52 33 11 64 6 21 62 99 71 73 26 5 Regions Visited 15 Branch Regions 9 Pre-discovered Areas 2 | . . . . . . . 1 . . . . 1 . . . Known Exits Taken 3 | . . . . . . . . . 1 1 . . . 1 . Unknown Exits Taken 12 | 1 1 1 1 1 1 1 1 1 . . 1 1 1 . . Scrap Searched 13 | . . 1 . 3 . . 2 . . 3 3 . 1 . . Spaces Dug 42 | . . 1 . . . . . . 11 4 10 . . 15 1 Terrain Destroyed 69 | . . 1 . . 25 2 . . 11 4 10 . . 15 1 Melee 42 | . . 1 . . . . . . 11 4 10 . . 15 1 Projectile 3 | . . . . . 1 2 . . . . . . . . . AOE 24 | . . . . . 24 . . . . . . . . . . Terrain Rammed . | . . . . . . . . . . . . . . . . Walls Destroyed . | . . . . . . . . . . . . . . . . Machines Disabled . | . . . . . . . . . . . . . . . . Actions | -11 -10 -10 -10 -9 -8 -7 -7 -7 -6 -6 -6 -6 -5 -5 -4 --------- Run | Yrd Mat Min Exi Min Mat Fac Low Low Fac Low Low Dat Pro Fac Fac Total 8437 | 69 96 435 238 254 594 675 488 24 769 582 1838 91 902 1177 205 Wait 880 | . . . . 2 5 91 7 . 137 13 89 . 275 197 64 Move 6898 | 49 90 412 237 223 431 470 467 24 568 517 1727 91 625 870 97 Hop . | . . . . . . . . . . . . . . . . Pick Up 122 | 5 1 16 1 13 24 11 3 . 15 10 4 . 1 15 3 Fast Attach 27 | 6 . . . . . 3 . . 4 1 . . . 8 5 Attach 58 | 1 . . . 1 6 14 3 . 5 5 1 . 1 16 5 Detach 15 | . . . . . . 2 2 . 2 . . . . 8 1 Swap 35 | . 2 1 . 4 14 4 . . 2 3 1 . . 3 1 Drop 81 | . 1 . . 11 23 4 1 . 19 7 2 . . 12 1 Fire 181 | 8 2 5 . . 91 75 . . . . . . . . . Melee 140 | . . 1 . . . 1 5 . 17 26 14 . . 48 28 Ram . | . . . . . . . . . . . . . . . . Kick . | . . . . . . . . . . . . . . . . Crush . | . . . . . . . . . . . . . . . . Escape Stasis . | . . . . . . . . . . . . . . . . Rewire . | . . . . . . . . . . . . . . . . Trap . | . . . . . . . . . . . . . . . . Miscellaneous . | . . . . . . . . . . . . . . . . Route ------- -11/Scrapyard -10/Materials -10/Mines (discovered 2 exits: [*Mat] / *Exi) -10/Exiles -9/Mines -8/Materials -7/Factory -7/Lower Caves -7/Lower Caves -6/Factory (discovered 3 exits: *Fac / *Low x2) -6/Lower Caves -6/Lower Caves (discovered 2 exits: *Fac / *Dat) -6/Data Miner -5/Proximity Caves -5/Factory (discovered 8 exits: *Fac x4 / *Upp x2 / Ext x2) -4/Factory History --------- Turn | Location | Event 16 | -11/Scrapyard | Discovered new exit (range 16) 116 | -11/Scrapyard | Entered Materials 255 | -10/Materials | Discovered new exit (range 9) 316 | -10/Materials | Build established: Mutant 343 | -10/Materials | Entered Mines 404 | -10/Mines | Discovered new exit (range 15) 419 | -10/Mines | Met a Derelict bent on vengeance 567 | -10/Mines | A weapon hastily lodged in a ceiling crevice suddenly fell to the ground 852 | -10/Mines | Joined a pair of Derelicts in attacking an 0b10 outpost 1022 | -10/Mines | Received a Mining Laser from a helpful Derelict 1132 | -10/Mines | Received a Rocket Launcher from a helpful Derelict 1213 | -10/Mines | Discovered new exit (range 8) 1685 | -10/Mines | Deemed a non-threat by the Exiles lab entrance 1697 | -10/Mines | Entered Exiles 1774 | -10/Exiles | Met 8R-AWN 1829 | -10/Exiles | Met EX-HEX 1941 | -10/Exiles | Met EX-BIN 1985 | -10/Exiles | Aligned with FarCom system 1989 | -10/Exiles | Given EX-Vault access code 2062 | -10/Exiles | Opened EX-Vault 2101 | -10/Exiles | Found Modified TNC 2172 | -10/Exiles | Warned to stay clear of 0b10 Research branches 2268 | -10/Exiles | Met EX-DEC 2431 | -10/Exiles | Discovered new exit (range 10) 2457 | -10/Exiles | Left Exiles lab with Modified TNC 2457 | -10/Exiles | Entered Mines 2761 | -9/Mines | Build established: Assassin 2800 | -9/Mines | Met a Derelict shopkeep closing up shop 3002 | -9/Mines | Found the Drone Emporium 3021 | -9/Mines | Found Prototype Device 3025 | -9/Mines | Identified Thief Drone Bay 3119 | -9/Mines | Build established: Mutant 3145 | -9/Mines | Discovered new exit (range 10) 3197 | -9/Mines | Entered Materials 3197 | -8/Materials | Accompanied by 2 allies 3197 | -8/Materials | Evolved 4 slots: Propulsion x2, Utility x2 3202 | -8/Materials | Led the pair of lost Derelicts to an unsafe place 4338 | -8/Materials | Destroyed 9 combat bots 4397 | -8/Materials | First assault squad dispatched 4492 | -8/Materials | Discovered new exit (range 16) 4538 | -8/Materials | Entered Factory 4538 | -7/Factory | Evolved 2 slots: Propulsion x1, Utility x1 4622 | -7/Factory | Build established: Scavenger-Mutant 5021 | -7/Factory | Garrison activated, responded to threat 5159 | -7/Factory | Lost 4 parts (4n) 5484 | -7/Factory | Repaired Med. Reactive Plating 5529 | -7/Factory | Repaired Gauss Rifle 5529 | -7/Factory | Build established: Mutant 6289 | -7/Factory | Discovered new exit (range 13) 6339 | -7/Factory | Entered Lower Caves 6751 | -7/Lower Caves | Encountered a Warlord checkpoint 6876 | -7/Lower Caves | Learned location of Zion (-7) 7127 | -7/Lower Caves | Discovered new exit (range 10) 7143 | -7/Lower Caves | Entered another Lower Caves area 7161 | -7/Lower Caves | Discovered new exit (range 12) 7185 | -7/Lower Caves | Entered Factory 7185 | -6/Factory | Evolved 2 slots: Utility x2 7510 | -6/Factory | Repaired Xenon Bombardment Thruster 7556 | -6/Factory | Repaired Greatsword 7613 | -6/Factory | Repaired Field Propulsion Drive 7629 | -6/Factory | Identified exit to Lower Caves 7641 | -6/Factory | Discovered new exit (range 12) 7670 | -6/Factory | Entered Lower Caves 7791 | -6/Lower Caves | Identified exit to Lower Caves 7914 | -6/Lower Caves | Lost 3 parts (3n) 7917 | -6/Lower Caves | Entered another Lower Caves area 7926 | -6/Lower Caves | Discovered new exit (range 8) 7929 | -6/Lower Caves | Build established: Hacker-Sprinter 7947 | -6/Lower Caves | Learned Factory non-interactive machine intel 8088 | -6/Lower Caves | Discovered new exit (range 9) 8240 | -6/Lower Caves | A Commander dispatched an escort 8244 | -6/Lower Caves | Learned Extension trap positions 8244 | -6/Lower Caves | Learned Armory trap positions 8244 | -6/Lower Caves | Learned Factory terminal intel 8518 | -6/Lower Caves | Entered Data Miner 8518 | -6/Data Miner | Accompanied by 2 allies 8518 | -6/Data Miner | Discovered new exit (range 6) 8519 | -6/Data Miner | Commander's escort returned to base 8519 | -6/Data Miner | Commander's escort returned to base 8523 | -6/Data Miner | Met Data Miner 8530 | -6/Data Miner | Learned location of Section 7 (-2) 8530 | -6/Data Miner | Acquired the access code to Warlord's prototype stash 8536 | -6/Data Miner | Received God Mode back door access code from Data Miner 8542 | -6/Data Miner | Entered Proximity Caves 8640 | -5/Proximity Caves | Learned Factory security intel 8771 | -5/Proximity Caves | Received a Behemoth hack from an annoying Tinkerer 8958 | -5/Proximity Caves | Discovered new exit (range 7) 8970 | -5/Proximity Caves | Spotted B-75 Beast 8980 | -5/Proximity Caves | Entered Factory 8980 | -5/Factory | Evolved 2 slots: Propulsion x1, Utility x1 8981 | -5/Factory | Identified exit to Upper Caves 8983 | -5/Factory | Loaded intel: 231 non-interactive machine locations 8984 | -5/Factory | Loaded intel: 27 terminal locations 9144 | -5/Factory | Fabricated Thunder Hammer (x1) 9199 | -5/Factory | Identified exit to Factory 9199 | -5/Factory | Identified exit to Extension 9362 | -5/Factory | Lost 4 parts (1p2n1u) 9461 | -5/Factory | Repaired VTOL Module 9501 | -5/Factory | Repaired Cesium-ion Thruster 9576 | -5/Factory | Build established: Hacker-Mutant 9611 | -5/Factory | Lost 4 parts (1p1n2w) 9713 | -5/Factory | Spotted B-75 Beast 9804 | -5/Factory | Entered another Factory area 9804 | -4/Factory | Evolved 2 slots: Propulsion x2 9868 | -4/Factory | Allied Derelicts emerged from ambush trap array 9936 | -4/Factory | Fabricated Adv. Force Field (x2) 9967 | -4/Factory | Lost 3 allies 9990 | -4/Factory | Core integrity fell below 50% 10026 | -4/Factory | Core integrity fell below 20% 10037 | -4/Factory | Lost 18 parts (2p8n5u3w) 10062 | -4/Factory | Destroyed 7 combat bots 10073 | -4/Factory | Destroyed by P-70 Sage with High-powered Shock Rifle Last Messages --------------- 10040_ S-27 Virus misfires. 10041_ S-27 Virus system terminally corrupted. 10045_ Acquired Hcp. Storage Unit. 10047_ Acquired Lrg. Storage Unit. 10053_ Acquired Autogun. 10054_ ALERT: Rogue bot located, Programmers report to Factory Zone 1V. 10056_ C-30 ARC bursts open, deploying its payload. 10056_ P-70 Sage unfolds itself. 10063_ Destroyed Antigrav System. 10063_ P-70 Sage system corrupted by crushing effect. 10067_ VTOL Module destroyed. 10068_ P-70 Sage suffers critical hit (Smash). 10068_ Destroyed Imp. Heat Sink. 10068_ P-70 Sage system corrupted by crushing effect. 10068_ P-70 Sage destroyed. 10069_ Acquired 15 matter. Map ----- +----------------------------------------------------+ | ??????????????# !! # | | ??????????????# # | | ??????????????# # #####+####### | | ??????????????###### # | | ?????????#######?# # | | ???????? # # | | ???????? "" # | | ???????" # """ # | | ???????" [ " w # | | ???????" % " ######## | | ???????????"" "" #??????# | | ????????????"S"" " #??????# | | ????????????""" " %% #??????# | | ????????????#####" ! #??????# | | ???????????? " %[ #??????# | | ??????????? # #??????#######+##### | | ??????????? # %[ """""######???????????????? | | ??????????? ?# # #???????????????? | | ??????????"" """ # # #???????????????? | | ???????????" """ + # #???????????????? | | ???????????????? # # % #???????????????? | | ?????????????????# =%###+######???????????????? | | ?????????????????# #% |*[ #???????????????? | | ?????????????????# #!*!! #???????????????? | | ?????????????????# #%[!![ #???????????????? | | ?????????????????# ?#!@%% #???????????????? | | ?????????????????# ??+%*p% #???????????????? | | ?????????????????# ? #*= #???????????????? | | ?????????????????# ? #| #???????????????? | | ?????????????????# ? ?# #???????????????? | | ?????????????????# ? ?###########???????????????? | | ?????????????????# ????????????????????????????? | | ?????????????????# w?????????????????????????????? | | ?????????????????? ?????????????????????????????? | | ?????????????????# ??????????????????????????????? | | ?????????????????#???????????????????????????????? | | ???????????????????????????????????????H?????????? | | ?????????????????????????????????????????????????? | | ?????????????????????????????????????????????????? | | ?????????????????????????????????????????????????? | | ??????????????????????x??????????????????????????? | | ?????????????????????????????????????????????????? | | ?????????????????????????????????????????????????? | | ?????????????????????????????????????????????????? | | ?????????????????????????????????????????????????? | | ?????????????????????????????????????????????????? | | ?????????????????????????????????????????????????? | | ?????????????????????????????????????????????????? | | ?????????????????????????????????????????????????? | | ?????????????????????????????????????????????????? | +----------------------------------------------------+ Best States ------------- Heat Dissipation 43 Energy Generation 21 Energy Capacity 310 Matter Stores 300 Matter Capacity 300 Sight Range 16 Terrain Scan Range 16 Terrain Scan Density 10 Power Amplification 20 Additional Mass Support 9 Armor Coverage 450 Resistance: KI 30 Core Shielding 20 Propulsion Shielding 33 Utility Shielding 33 Evasion (%) 65 Recoil Reduction 5 Kinecelleration 30 Offensive Hacking 20 Defensive Hacking 20 Item Schematics ----------------- Med. Reactive Plating | -7/Factory | Scanalyzed Combat Drone Bay | -6/Data Miner | Free Lgt. Regenerative Plating | -6/Data Miner | Free Cld. Gravmag System | -6/Data Miner | Free Imp. Energy Well | -6/Data Miner | Free Thunder Hammer | -6/Data Miner | Free Myomer Leg | -6/Data Miner | Free Adv. Coolant Injector | -6/Data Miner | Free Force Lance | -6/Data Miner | Free Imp. Force Field | -6/Data Miner | Free Adv. Medium Treads | -6/Data Miner | Free Biometal Leg | -6/Data Miner | Free Particle Reactor | -5/Factory | Hacked Cld. Aerolev Unit | -5/Factory | Hacked Robot Schematics ------------------ C-35 Carver | -6/Data Miner | Free I-36 Angel | -6/Data Miner | Free B-48 Gladiator | -6/Data Miner | Free A-15 Conveyor | -6/Data Miner | Free M-30 Cleanser | -6/Data Miner | Free Fabricated ------------ Thunder Hammer | x1 | -5/Factory Adv. Force Field | x2 | -4/Factory | Preloaded Alien Tech Used ----------------- None Achievements -------------- None Challenges ------------ None Game ------ Seed NullPowerBoregun Manual? 0 Play Time 01:43:58 Cumulative 151.7 hours Start 2024.05.03 @ 17:56:40 End 2024.05.03 @ 19:47:40 Sessions 1 Manual Loads 0 Difficulty Rogue Special Mode None Game No. 171 Rogue 171 Adventurer 0 Explorer 0 Win Type - Total 0 Types 0/0/0/0/0/0/0/0/0 Lore% 33 Gallery% 59 Achievement% 41 Wizard Run 0 Options --------- Layout 1 ASCII 0 Keyboard 1 Movement Vi Keybinds 0 Fullscreen 1 Font 24/Smallcaps Map View 50x35 Zoom Use 0% Tactical HUD 1 Map Filters NONE Filters NONE Steam 1 RUN: 8bc24e75-f86c-4758-8331-f392d35d77a6